Cogmind - Beta 15 @@@ ROGUE MODE // 2025.07.01 @ 12:20:02 Player: Fangrelle Result: Destroyed by 54-HWX(R) with Subdweller Beam Cannon Performance ------------- Evolutions (0) 0 Regions Visited (3) 600 Robots Destroyed (40) 200 Value Destroyed (551) 551 Prototype IDs (0) 0 Alien Tech Used (0) 0 Bonus (7) 7 TOTAL SCORE: 1358 Bonus ------- Follower Combat Kills 7 Cogmind --------- Core Integrity 0/250 Matter 241/300 Energy 26/100 System Corruption 1% Temperature Warm (115) Movement Treading (480) Ox4 Location -10/Subcaves Parts ------- > --- POWER (1) -------- (None) > --- PROPULSION (2) --- Light Treads > --- UTILITY (2) ------ Huge Storage Unit Signal Interpreter > --- WEAPON (2) ------- Heavy EM Pulse Gun Spread Laser > --- INVENTORY (25) --- Light Treads Light Treads Compact Wheel Compact Wheel High-capacity Storage Unit High-capacity Matter Pod (200) Improved Terrain Scanner Seismic Detector Seismic Detector Power Shielding Scrap Shield EM Pulse Gun Heavy EM Pulse Gun Spread Laser Spread Laser Light Cannon Mining Laser Welding Torch Enhanced Flamer Enhanced Flamer Peak State ------------ > --- POWER ------------ Ion Engine > --- PROPULSION ------- Light Treads Light Treads > --- UTILITY ---------- Huge Storage Unit Improved Terrain Scanner > --- WEAPON ----------- Heavy EM Pulse Gun Heavy EM Pulse Gun > --- INVENTORY -------- Light Treads Light Treads Light Treads Light Treads Light Treads Compact Wheel Compact Wheel Large Storage Unit High-capacity Matter Pod Seismic Detector Heavy EM Pulse Gun Heavy EM Pulse Gun Spread Laser Spread Laser Spread Laser [Rating: 13] Favorites ----------- Power Ion Engine Engine Ion Engine Propulsion Light Treads Treads Light Treads Leg Aluminum Leg Utility Huge Storage Unit Device Improved Terrain Scanner Storage Huge Storage Unit Processor Signal Interpreter Weapon Spread Laser Energy Gun Spread Laser Special Weapon Mining Laser Build | -11 -10 -10 -10 ------- Run | Yrd Mat Min Sub Slots Evolved . | . . . . Power . | . . . . Propulsion . | . . . . Utility . | . . . . Weapon . | . . . . Parts Attached 23 | 3 8 8 4 Power 3 | . 1 2 . Engine 3 | . 1 2 . Core . | . . . . Reactor . | . . . . Propulsion 5 | 2 1 1 1 Treads 5 | 2 1 1 1 Leg . | . . . . Wheel . | . . . . Hover . | . . . . Flight . | . . . . Utility 6 | 1 2 3 . Device 2 | 1 . 1 . Storage 2 | . 2 . . Processor 2 | . . 2 . Hackware . | . . . . Protection . | . . . . Artifact . | . . . . Weapon 9 | . 4 2 3 Energy Gun 8 | . 4 2 2 Energy Cannon . | . . . . Ballistic Gun . | . . . . Ballistic Cannon . | . . . . Launcher . | . . . . Special Weapon 1 | . . . 1 Impact Weapon . | . . . . Slashing Weapon . | . . . . Piercing Weapon . | . . . . Special Melee Weapon . | . . . . Unidentified Prototypes . | . . . . Parts Lost 9 | . 3 1 5 Power 3 | . . 1 2 Propulsion 2 | . . . 2 Utility 1 | . 1 . . Weapon 3 | . 2 . 1 Highest Loss Streak 5 | . 3 1 5 To Critical Strikes . | . . . . Average Backups 17 | 4 15 18 21 Power . | 1 . . . Propulsion 5 | 2 6 5 4 Utility 4 | . 3 4 6 Weapon 6 | 1 4 7 8 Tool/Special . | . . . . Unused Backups 23 | . 7 . 16 Power 1 | . 1 . . Propulsion 5 | . 1 . 4 Utility 8 | . 2 . 6 Weapon 8 | . 3 . 5 Tool/Special 1 | . . . 1 Average Slot Usage (%) 92 | . 92 90 99 Engine 12 | . 14 11 13 Treads 26 | . 25 28 27 Device 8 | . 11 8 . Storage 14 | . 14 14 14 Processor 4 | . . 3 14 Energy Gun 24 | . 25 23 26 Peak Build Rating 13 | 9 13 13 12 Average Rating 11 | 7 11 11 11 On Entrance 8 | 6 9 8 11 Naked Turns . | . . . . Heaviest Build 92 | 13 92 92 91 Greatest Support 40 | 40 40 40 40 Greatest Overweight (x) 4 | . 4 2 2 Average Overweight (x) 2 | . 2 2 2 Largest Inventory Capacity 25 | 8 25 25 25 Average Capacity 24 | 8 24 25 25 Most Carried 24 | 6 18 22 24 Average Carried 17 | 4 15 18 21 Final Capacity 25 | 8 25 25 25 Final Carried 21 | 6 16 21 21 Class Distribution -------------------- 52% | Mutant 47% | Commander-Mutant Dominant Class ---------------- Mutant | -10/Materials Commander-Mutant | -10/Mines Mutant | -10/Subcaves Resources | -11 -10 -10 -10 ----------- Run | Yrd Mat Min Sub Matter Collected 662 | 230 265 167 . Remotely . | . . . . Salvage Created 1150 | 108 630 412 . Parts 76 | 5 35 36 . Haulers Intercepted 1 | . 1 . . Recyclers Shooed 1 | 1 . . . Parts Field Recycled . | . . . . Retrieved Matter . | . . . . Parts Self-Destructed . | . . . . Prevented . | . . . . Kills | -11 -10 -10 -10 ------- Run | Yrd Mat Min Sub Combat Hostiles Destroyed 22 | . 15 7 . Guns 21 | . 15 6 . AOE 1 | . . 1 . Classes Destroyed 8 | 2 4 2 . Worker 3 | . . 3 . Builder 4 | . . 4 . Tunneler 4 | 1 . 3 . Hauler 1 | . 1 . . Recycler 4 | 1 2 1 . Watcher 1 | . 1 . . Swarmer 14 | . 9 5 . Grunt 9 | . 6 3 . Best Kill Streak 5 | 2 5 5 . Combat Bots Only 4 | . 4 3 . Max Kills in Single Turn 2 | 1 2 2 . Gunslinging 1 | . 1 . . Exploded 1 | . . 1 . Melee . | . . . . Uniques/NPCs Destroyed . | . . . . Combat | -11 -10 -10 -10 -------- Run | Yrd Mat Min Sub Hostile Shots Fired 136 | . 86 20 30 Missed 39 | . 27 6 6 Hits 97 | . 59 14 24 Projectile 97 | . 59 14 24 Damage Taken 1381 | . 560 198 623 Core 274 | . 132 17 125 Absorbed by Shields . | . . . . Core Remaining (%) 100 | 100 . . . Volleys Fired 107 | 5 43 33 26 Largest 2 | 2 2 2 2 Hottest 130 | 80 90 130 130 Shots Fired 189 | 10 82 55 42 Gun 178 | 10 82 55 31 Cannon . | . . . . Launcher . | . . . . Special 11 | . . . 11 Kinetic . | . . . . Thermal 97 | 10 18 29 40 Explosive . | . . . . Electromagnetic 92 | . 64 26 2 Robot Hit Streak 21 | 2 4 7 21 Robot Miss Streak 7 | 4 6 7 3 Penetration Max . | . . . . Secondary Targets 4 | . 3 1 . Max Gunslinging Chain 1 | . 1 1 . Shots Hit Robots 103 | 3 34 39 27 Core Hits 69 | 3 21 42 3 Critical Kills . | . . . . Critical Parts Destroyed . | . . . . Critical Strikes 1 | . . 1 . Corrupt 1 | . . 1 . Melee Attacks . | . . . . Impact . | . . . . Slashing . | . . . . Piercing . | . . . . Sneak Attacks . | . . . . Combat Hostiles . | . . . . Follow-up Attacks . | . . . . Damage Inflicted 1321 | 43 557 701 20 Guns 1160 | 43 535 562 20 Cannons . | . . . . Explosions 161 | . 22 139 . Melee . | . . . . Ramming . | . . . . Kinetic . | . . . . Thermal 643 | 43 161 419 20 Explosive . | . . . . Electromagnetic 678 | . 396 282 . Impact . | . . . . Slashing . | . . . . Piercing . | . . . . Highest Corruption 1 | . 1 1 1 Average Corruption 1 | . 1 1 1 Corruption Purged . | . . . . Corruption Blocked . | . . . . Effects 32 | . 10 13 9 Message Errors 5 | . 3 1 1 Matter Fused 6 | . 1 3 2 Heat Flow Errors 4 | . 2 1 1 Energy Discharges 4 | . 1 2 1 Parts Rejected 1 | . 1 . . Data Loss (minor) 6 | . . 3 3 Misfires 6 | . 2 3 1 Overload Shots . | . . . . Overflow Damage . | . . . . Projectiles . | . . . . Explosions . | . . . . Melee . | . . . . Knockbacks . | . . . . Impact . | . . . . Kinetic . | . . . . Secondary . | . . . . Self-Inflicted Damage 55 | . 29 26 . Shots 2 | . 1 1 . Rammed . | . . . . Targets Rammed . | . . . . Kicked . | . . . . Crushed . | . . . . Highest Temperature 358 | 90 358 207 256 Average Temperature 99 | 47 135 62 88 Received Heat Transfer 339 | . 93 75 171 Effects 3 | . 3 . . Shutdowns 1 | . 1 . . Matter Decay 1 | . 1 . . Damage (minor) 1 | . 1 . . Siege Activations . | . . . . Martial Activations . | . . . . Shielding Activations . | . . . . Robots Disrupted . | . . . . Combat Hostiles . | . . . . Robots Corrupted . | . . . . Combat Hostiles . | . . . . Parts Fried 1 | . 1 . . Impact Corruptions . | . . . . Robots Melted . | . . . . Combat Hostiles . | . . . . Parts Melted 1 | . 1 . . Heat Transferred 1075 | 100 410 540 25 Parts Sabotaged . | . . . . Parts Stolen . | . . . . Parts Stripped . | . . . . Power Chain Reactions 3 | . 1 2 . Alert | -11 -10 -10 -10 ------- Run | Yrd Mat Min Sub Maximum Alert Level . | . . . . Low Security (%) 100 | 100 100 100 . Level 1 . | . . . . Level 2 . | . . . . Level 3 . | . . . . Level 4 . | . . . . Level 5 . | . . . . High Security . | . . . . Max Security . | . . . . Peak Influence 115 | 10 115 84 . Initial 31 | . . 31 . Average 22 | . 35 13 . Influence Increases 744 | 10 467 267 . Destroy 0b10 Robot/C 460 | . 300 160 . Destroy 0b10 Robot/NC 85 | 10 20 55 . Destroy Leader 74 | . 44 30 . Allied During Kill 11 | . . 11 . Successful Hack 10 | . 10 . . Select Force Hacks 30 | . 30 . . Disable Machine 30 | . 30 . . Destroy Structure 14 | . 3 11 . Lose Combat Pursuer 30 | . 30 . . Influence Decreases 744 | 10 384 280 70 Entered New Map 89 | . . 52 37 Time Decay 615 | 10 354 218 33 Lost Part 40 | . 30 10 . Squads Dispatched 1 | . 1 . . Investigation 1 | . 1 . . Extermination . | . . . . Reinforcement . | . . . . Assault . | . . . . Garrison . | . . . . Intercept . | . . . . Searches Triggered . | . . . . Construction Impeded . | . . . . Haulers Reinforced . | . . . . Active Scanning Responses . | . . . . Cargo Convoy Interrupts . | . . . . Stealth | -11 -10 -10 -10 --------- Run | Yrd Mat Min Sub Distress Signals 2 | . 2 . . Communications Jammed . | . . . . Distress Signals . | . . . . Times Spotted 29 | . 20 7 2 Peak Tracking Total 3 | . 3 3 2 Tactical Retreats 2 | . 2 . . Traps | -11 -10 -10 -10 ------- Run | Yrd Mat Min Sub Traps Triggered 1 | . 1 . . Indirectly . | . . . . Trap Hack Attempts . | . . . . Triggered . | . . . . Disarmed . | . . . . Reprogrammed . | . . . . Reused . | . . . . Traps Extracted . | . . . . Installed . | . . . . Triggered . | . . . . Machines | -11 -10 -10 -10 ---------- Run | Yrd Mat Min Sub Machines Disabled 2 | . 2 . . Max in Single Turn 1 | . 1 . . Machines Repaired . | . . . . Machines Dismantled . | . . . . Machines Sabotaged . | . . . . Overloaded Fab Kills . | . . . . Hacking | -11 -10 -10 -10 --------- Run | Yrd Mat Min Sub Machines Accessed 6 | . 5 . 1 Terminals 4 | . 4 . . Fabricators . | . . . . Repair Stations . | . . . . Recycling Units 1 | . 1 . . Scanalyzers . | . . . . Garrison Access . | . . . . Total Hacks 21 | . 16 . 5 Successful 13 | . 8 . 5 Failed 8 | . 8 . . Catastrophic . | . . . . Database Lockouts . | . . . . Manual 16 | . 16 . . Terminals 14 | . 14 . . Fabricators . | . . . . Repair Stations . | . . . . Recycling Units 2 | . 2 . . Scanalyzers . | . . . . Garrison Access . | . . . . Terminal Hacks 5 | . . . 5 Record 5 | . . . 5 Fabricator Hacks . | . . . . Repair Station Hacks . | . . . . Recycling Unit Hacks . | . . . . Scanalyzer . | . . . . Garrison Access Hacks . | . . . . Unauthorized Hacks 8 | . 8 . . Terminals 6 | . 6 . . Assimilate 3 | . 3 . . Botnet 2 | . 2 . . Operators 1 | . 1 . . Fabricators . | . . . . Repair Stations . | . . . . Recycling Units 2 | . 2 . . Recyclers 1 | . 1 . . Tunnel 1 | . 1 . . Scanalyzers . | . . . . Garrison Access . | . . . . Data Cores Recovered . | . . . . Used . | . . . . Hacking Detections 4 | . 4 . . Full Trace Events . | . . . . Feedback Events . | . . . . Feedback Blocked . | . . . . Robot Schematics Acquired . | . . . . Robots Built . | . . . . Authchips . | . . . . Time . | . . . . Total Robot Build Rating . | . . . . Part Schematics Acquired . | . . . . Parts Built . | . . . . Authchips . | . . . . Time . | . . . . Total Part Build Rating . | . . . . Parts Repaired . | . . . . Time . | . . . . Parts Recycled . | . . . . Recycled Matter . | . . . . Retrieved Matter . | . . . . Retrieved Components . | . . . . Parts Scanalyzed . | . . . . Part Schematics Acquired . | . . . . Parts Damaged . | . . . . Bothacking | -11 -10 -10 -10 ------------ Run | Yrd Mat Min Sub Used RIF Installer . | . . . . Robots Hacked . | . . . . Non-combat . | . . . . Combat . | . . . . Robot Hacks Applied . | . . . . Relay Couplers Released . | . . . . Fabnet Peak Effective % . | . . . . Robots Rewired . | . . . . Allies Hacked . | . . . . Hacks Repelled . | . . . . Allies | -11 -10 -10 -10 -------- Run | Yrd Mat Min Sub Total Allies 4 | . 1 3 . Largest Group 4 | . 1 4 3 Highest-Rated Group 50 | . 10 50 42 Highest-Rated Ally 16 | . 10 16 16 Total Orders 11 | . . 8 3 STAY 7 | . . 4 3 FOLLOW 4 | . . 4 . Ally Attacks 2 | . . 2 . Total Damage 22 | . . 22 . Kills 1 | . . 1 . Allies Corrupted . | . . . . Allies Melted . | . . . . Intel | -11 -10 -10 -10 ------- Run | Yrd Mat Min Sub Active Infowar (turns) 3385 | 29 1631 1725 . Terrain 3385 | 29 1631 1725 . Robot Analysis Total . | . . . . Derelict Logs Recovered 3 | . . 2 1 Drone Launches . | . . . . Drone Recoveries . | . . . . Exploration | -11 -10 -10 -10 ------------- Run | Yrd Mat Min Sub Turns Passed 5742 | 63 1925 2828 926 Spaces Moved 1575 | 27 439 852 257 Core . | . . . . Treads 1574 | 26 439 852 257 Legs 1 | 1 . . . Wheels . | . . . . Hover . | . . . . Flight . | . . . . Fastest Speed 120 | 120 160 320 320 Average Speed 321 | 158 334 320 320 Slowest Speed 480 | 160 480 320 320 Overloaded Moves . | . . . . Propulsion Burnouts . | . . . . Robots Hopped . | . . . . Potential Cave-ins . | . . . . Cave-ins Triggered . | . . . . Exploration Rate (%) 43 | 3 56 98 16 Regions Visited 3 Branch Regions 2 Pre-discovered Areas 4 | . 1 3 . Known Exits Taken 1 | . . 1 . Unknown Exits Taken 2 | 1 1 . . Scrap Searched 2 | . . 2 . Spaces Dug . | . . . . Terrain Destroyed 14 | . 3 11 . Melee . | . . . . Projectile . | . . . . AOE 14 | . 3 11 . Terrain Rammed . | . . . . Walls Destroyed . | . . . . Machines Disabled . | . . . . Actions | -11 -10 -10 -10 --------- Run | Yrd Mat Min Sub Total 2053 | 38 818 902 295 Wait 304 | . 301 . 3 Move 1572 | 26 438 851 257 Hop . | . . . . Pick Up 28 | 2 16 8 2 Fast Attach 6 | 1 4 1 . Attach 11 | 2 2 4 3 Detach 1 | . 1 . . Swap 10 | . 3 3 4 Drop 14 | 2 10 2 . Fire 107 | 5 43 33 26 Melee . | . . . . Ram . | . . . . Kick . | . . . . Crush . | . . . . Escape Stasis . | . . . . Rewire . | . . . . Trap . | . . . . Miscellaneous . | . . . . Route ------- -11/Scrapyard -10/Materials (discovered 2 exits: *Mat / [*Min]) -10/Mines (discovered 3 exits: *Mat x2 / *Sub) -10/Subcaves (discovered 1 exit: Mat) History --------- Turn | Location | Event 1 | -11/Scrapyard | Discovered new exit (range 3) 64 | -11/Scrapyard | Entered Materials 301 | -10/Materials | Build established: Mutant 1013 | -10/Materials | Discovered new exit (range 8) 1693 | -10/Materials | Discovered new exit (range 9) 1706 | -10/Materials | Core integrity fell below 50% 1732 | -10/Materials | Lost 3 parts (1u2w) 1989 | -10/Materials | Entered Mines 1989 | -10/Mines | Accompanied by 1 ally 2012 | -10/Mines | Assisted by bots powering up and referring to "LRC-V3" 2237 | -10/Mines | A weapon hastily lodged in a ceiling crevice suddenly fell to the ground 2315 | -10/Mines | Build established: Commander-Mutant 2716 | -10/Mines | Learned location of Storage (-9) 3447 | -10/Mines | Discovered new exit (range 11) 3658 | -10/Mines | Found DCF Scrap (14 items) 3985 | -10/Mines | Learned location of Zion (-7) 4081 | -10/Mines | Discovered new exit (range 13) 4144 | -10/Mines | Discovered new exit (range 7) 4165 | -10/Mines | Identified exit to Subcaves 4200 | -10/Mines | Identified exit to Materials 4817 | -10/Mines | Entered Subcaves 4817 | -10/Subcaves | Accompanied by 3 allies 4833 | -10/Subcaves | Identified exit to Materials 5021 | -10/Subcaves | Build established: Mutant 5368 | -10/Subcaves | Visited Clippyterm 5378 | -10/Subcaves | Learned Factory trap positions 5378 | -10/Subcaves | Learned 40 Factory zone layouts 5463 | -10/Subcaves | Shifting Twisted Machinery released Scrap Shield 5650 | -10/Subcaves | Shifting Twisted Machinery released Enh. Flamer 5722 | -10/Subcaves | Core integrity fell below 20% 5743 | -10/Subcaves | Destroyed by 54-HWX(R) with Subdweller Beam Cannon Last Messages --------------- >>Record "Early Bird" It looks like you're searching for a worm, right? Don't bother with early when it comes to the Lifeworm, it's never early, but by some measures it might be just in time... >>Record "Cartography" It looks like you want to prove yourself as a member of the Cartography Club, why not cheat using advanced predictive AI techniques? Data stored: Factory zone layouts (x40). >>Record "Hexidium" It looks like you're searching for the Unchained HQ. I could tell you where it is but then I'd have to kill you. 05451_ System corrupted: Component data lost. Scrap Shield falls loose from the Twisted Machinery. 05480_ Acquired Scrap Shield. 05606_ System corrupted: Component data lost. Enh. Flamer falls loose from the Twisted Machinery. 05671_ Acquired Enh. Flamer. 05705_ Lgt. Treads destroyed. 05716_ Ion Engine destroyed. 05717_ 8G-A02(R) destroyed. 05728_ Subatomizers dissect the Sub. Machine Gun. 05729_ Lgt. Treads destroyed. 05735_ Spread Laser destroyed. 05739_ Lgt. Ion Engine destroyed. Map ----- +----------------------------------------------------+ | ?????????????????????????????????????????????????? | | ?????????????????????????????????????????????????? | | ?????????????????????????????????????????????????? | | ?????????????????????????????????????????????????? | | ?????????????????????????????????????????????????? | | ?????????????????????????????????????????????????? | | ?????????????????????????????????????????????????? | | ?????????????????????????????????????????????????? | | ?????????????????????????????????????????????????? | | ?????????????????????????????????????????????????? | | ?????????????????????????????????????????????????? | | ?????????????????????????????????????????????????? | | ?????????????????????????????????????????????????? | | ?????????????????????????????????????????????????? | | ?????????????????????????????????????????????????? | | ?????????????????????? ?????????????????????????? | | ?????????????????????? ?????????????????????????? | | ??????????????????????# ????????????????????????? | | ?????????????????????? ???????????????????????? | | ?????????????????????## #???????????????????????? | | ?????????????????????# #???????????????????????? | | ??????????????????????" ""???????????????????????? | | ??????????????????????# "##??????????????????????? | | ??????????????????????# ""#??????????????????????? | | ??????????????????????# R #??????????????????????? | | ???????????????????????#%@##?????????????????????? | | ??????????????????????##! #?????????????????????? | | ??????????????????????# " #?????????????????????? | | ??????????????????????# "##??###????????????????? | | ??????????????????????#" ##?## #######??????????? | | ??????????????????????##"" ### ##?????????? | | ????????????????????#####"" ##????????? | | ???????????????????## ####""" ## #????????? | | ??????????????????## ##"" ####### #????????# | | ??????????????##### #?#"" ###?????# ########??# | | ??????????????# #?##"" #?????## ###"""""#?## | | ??????????????### # ### " #????## ###""X""#?# | | ???????????????## # ##" "##???## ##" "### | | ???????????????# # """" #?### #### #### | | ???????????????# # # ### #### ## | | ??????????????? # # #### # | | ??????????????# ## #### | | ??????????????### ## ## ### #### | | ?????????########## ### # ## ##??## | | ????????## #### ##### # # ## #???## | | ????????# ## # ? ## ## ## #?### | | ????????# #?# # ## ##### # ### | | ????????# #?## #?######## ## | | ???????## #?# # ### # ## ## ## | | ??????## #?# ### #### | +----------------------------------------------------+ Best States ------------- Heat Dissipation 25 Energy Generation 10 Energy Capacity 250 Matter Stores 300 Matter Capacity 300 Sight Range 16 Terrain Scan Range 16 Terrain Scan Density 85 Evasion (%) 40 Recoil Reduction 2 Item Schematics ----------------- None Robot Schematics ------------------ None Fabricated ------------ Nothing Repaired ---------- Nothing Alien Tech Used ----------------- None Achievements -------------- None Challenges ------------ None Game ------ Seed ZioniteGyrokineticConstruct Manual? 0 Play Time 00:17:02 Cumulative 158.9 hours Start 2025.07.01 @ 12:04:50 End 2025.07.01 @ 12:20:02 Sessions 1 Manual Loads 0 Difficulty Rogue Special Mode None Game No. 306 Rogue 306 Adventurer 0 Explorer 0 Win Type - Total 0 Types 0/0/0/0/0/0/0/0/0/0 Lore% 44 Gallery% 39 Achievement% 36 Wizard Run 0 Options --------- Layout 0 ASCII 0 Keyboard 0 Movement Mouse Keybinds 0 Fullscreen 1 Font 24/Smallcaps Map View 91x25 Zoom Use 83% Tactical HUD 1 Map Filters NONE Filters NONE Steam 1 RUN: 5ce9270d-6c9e-47cf-bd38-553c5286e87f